bitfinex/quotes_ETHUSD_20251110
["timestamp","ask_amount","ask_price","bid_price","bid_amount"]
[1762809709334,0.001,3551.4,3551.3,2.81587024]
[1762809710226,0.001,3551.4,3551.3,3.42967024]
[1762809710432,0.001,3551.4,3551.3,3.74733322]
[1762809713314,0.4881,3551.4,3550.6,0.0966]
[1762809713512,0.4794,3551.4,3551.3,2.81587024]
[1762809713924,0.9665,3551.4,3551.3,2.81587024]
[1762809715133,0.9665,3551.4,3551.1,2.81601042]
[1762809715436,0.4864,3551.2,3551.1,2.81601042]
[1762809717009,0.9695,3551.2,3550.6,0.0966]
[1762809717227,0.4979,3551.0,3550.9,2.81618744]
[1762809717938,0.4831,3551.2,3551.1,2.81602883]
[1762809718144,0.001,3551.4,3551.3,2.81587024]
[1762809718442,0.4989,3551.4,3551.3,2.81587024]
[1762809720837,2.81605117,3551.1,3550.6,0.002]
[1762809721148,0.982,3551.4,3550.6,0.002]
[1762809721149,0.6857,3550.7,3550.6,0.002]
[1762809721500,1.1688,3550.7,3550.6,0.002]
[1762809722747,3.98514607,3550.7,3550.6,0.002]
[1762809724404,3.98514607,3550.7,3550.5,0.002]
[1762809724405,2.81642539,3550.6,3550.5,0.002]
[1762809724604,3.79742539,3550.6,3550.5,0.002]
[1762809725939,4.07637538,3550.3,3550.2,0.002]
[1762809726244,4.57427538,3550.3,3550.2,0.002]
[1762809726442,5.05737538,3550.3,3550.2,0.002]
[1762809727343,4.07653406,3550.1,3549.1,0.01]
[1762809727572,2.81698076,3549.9,3549.1,0.01]
[1762809727758,2.81729821,3549.5,3549.1,0.01]
[1762809727920,3.31519821,3549.5,3549.1,0.01]
[1762809728119,5.05801021,3549.5,3549.1,0.01]
[1762809728745,2.81753634,3549.2,3549.1,0.01]
[1762809728957,3.72101973,3549.1,3548.9,0.002]
[1762809729154,3.31559512,3549.0,3548.9,0.002]
[1762809729314,0.4979,3549.0,3548.9,0.002]
[1762809729521,3.79869512,3549.0,3548.9,0.002]
[1762809732273,5.05840712,3549.0,3548.9,0.002]
[1762809733724,5.46391112,3549.0,3548.9,0.002]
[1762809735960,4.48322873,3548.6,3548.5,0.002]
[1762809736148,4.98112873,3548.6,3548.5,0.002]
[1762809736322,5.46422873,3548.6,3548.5,0.002]
[1762809738134,3.22383442,3548.2,3548.1,0.01]
[1762809738456,3.72173442,3548.2,3548.1,0.01]
[1762809738628,4.20483442,3548.2,3548.1,0.01]
[1762809739877,4.20483442,3548.2,3548.1,0.012]
[1762809742905,5.46454642,3548.2,3548.1,0.012]
[1762809743205,2.81912494,3547.2,3547.1,0.01]
[1762809743405,3.31702494,3547.2,3547.1,0.01]
[1762809743624,3.80012494,3547.2,3547.1,0.01]
[1762809744831,0.981,3547.2,3547.1,0.01]
[1762809745035,3.80012494,3547.2,3547.1,0.01]
[1762809745420,0.1919,3547.8,3547.1,0.4115]
[1762809745621,1.259712,3547.7,3547.2,0.3069]
[1762809745821,2.81874633,3547.7,3547.2,0.3069]
[1762809746021,1.451612,3547.8,3547.2,3.126023]
[1762809746022,0.1919,3547.8,3547.2,3.126023]
[1762809746224,0.1919,3547.8,3547.2,0.3069]
[1762809746412,0.4521,3548.4,3547.7,0.3069]
[1762809746939,2.81830269,3548.3,3547.7,0.3069]
[1762809747102,2.81830269,3548.3,3547.7,0.2569]
[1762809747305,3.27027268,3548.4,3547.7,0.2569]
[1762809747614,1.259712,3548.2,3547.7,0.2569]
[1762809747814,2.81834684,3548.2,3547.7,0.2569]
[1762809748402,1.259712,3548.3,3547.7,0.2569]
[1762809748403,2.8182582,3548.3,3547.7,0.2569]
[1762809748604,2.81817205,3548.4,3547.8,2.81864393]
[1762809748927,2.81846781,3548.1,3547.4,2.81896545]
[1762809749128,2.81809783,3548.5,3547.6,2.81876154]
[1762809749314,1.259712,3548.4,3547.6,2.8187487]
[1762809749514,2.81828258,3548.3,3547.7,2.81872374]
[1762809749727,0.44205497,3548.4,3547.4,0.2569]
[1762809749930,0.44205497,3548.4,3547.5,0.2569]
[1762809750116,0.44205497,3548.4,3547.6,2.81880708]
[1762809750318,0.44205497,3548.4,3547.6,0.30757071]
[1762809750518,2.81830023,3548.3,3547.6,2.8187604]
[1762809750845,2.81830023,3548.3,3547.6,2.81878031]
[1762809751220,0.89415497,3548.4,3547.6,2.81878031]
[1762809751419,2.15386697,3548.4,3547.6,2.81878031]
[1762809751737,2.15386697,3548.4,3547.6,2.81880708]
[1762809751945,3.7123397,3548.4,3547.6,2.81880708]
[1762809752109,3.2602397,3548.4,3547.7,2.81865586]
[1762809752526,2.81825485,3548.3,3547.7,2.81869642]
[1762809753315,0.44205497,3548.4,3547.5,3.07577266]
[1762809753537,4.51996134,3548.4,3547.8,2.8185811]
[1762809753714,2.8182518,3548.3,3547.7,2.81870693]
[1762809753912,0.44205497,3548.4,3547.1,0.1046]
[1762809754146,2.81847242,3548.1,3547.5,2.81887758]
[1762809754541,2.81846991,3548.1,3547.2,0.2569]
[1762809754749,3.27036937,3548.3,3547.3,0.31806304]
[1762809754750,0.4521,3548.3,3547.3,0.31806304]
[1762809754905,0.4521,3548.3,3547.3,2.81903236]
[1762809755113,2.81845774,3548.1,3547.3,2.81903236]
[1762809755311,2.81848928,3548.0,3547.2,3.07602025]
[1762809755554,2.81834997,3548.2,3547.2,3.07602025]
[1762809755555,2.81861374,3547.9,3547.2,2.81906315]
[1762809755710,2.81861374,3547.9,3547.3,2.81903411]
[1762809756110,0.4521,3548.1,3547.1,0.1046]
[1762809756309,3.41307099,3548.3,3547.2,0.2569]
[1762809756611,2.81841629,3548.1,3547.5,2.81884802]
[1762809757409,2.81836218,3548.2,3547.6,2.8207933]
[1762809757659,2.81841,3548.1,3547.6,0.002]
[1762809758272,2.81843693,3548.1,3547.6,0.002]
[1762809759175,0.001,3548.3,3547.6,2.82073434]
[1762809759581,0.001,3548.3,3547.6,2.82079075]
[1762809759754,0.59670275,3548.3,3547.6,2.82079075]
[1762809759954,2.81839281,3548.2,3547.6,2.82079075]
[1762809760161,3.41413078,3548.1,3547.6,0.002]
[1762809760469,2.81842803,3548.1,3547.6,0.002]
[1762809761358,3.27060157,3548.0,3547.6,0.002]
[1762809761557,2.81868686,3547.8,3547.6,0.002]
[1762809762282,2.81859637,3547.9,3547.6,0.002]
[1762809762484,3.27069637,3547.9,3547.6,0.002]
[1762809763078,0.001,3548.3,3547.8,0.2569]
[1762809763547,2.81841238,3548.1,3547.8,0.2569]
[1762809763747,0.4531,3548.3,3547.8,0.2569]
[1762809763981,2.81838409,3548.2,3547.8,0.2569]
[1762809764287,3.41458211,3548.1,3547.8,0.2569]
[1762809764580,2.81841212,3548.1,3547.8,0.2569]
[1762809765005,0.4642,3547.9,3547.6,0.002]
[1762809765209,0.4521,3548.0,3547.6,0.002]
[1762809765210,0.4642,3547.7,3547.6,0.002]
[1762809765425,0.59622951,3547.7,3547.6,0.002]
[1762809765599,3.41479839,3547.9,3547.6,0.2589]
[1762809765783,3.41492064,3547.8,3547.6,0.002]
[1762809765965,3.41493385,3547.7,3547.6,0.002]
[1762809766320,3.87913385,3547.7,3547.6,0.002]
[1762809766883,0.59620623,3547.7,3547.6,0.002]
[1762809767096,2.81872762,3547.7,3547.6,0.002]
[1762809767406,3.87913385,3547.7,3547.6,0.002]
[1762809768169,4.33123385,3547.7,3547.6,0.002]
[1762809770689,4.64377132,3547.7,3547.6,0.002]
[1762809770889,9.52713001,3547.7,3547.6,0.002]
[1762809771299,10.27240819,3547.7,3547.6,0.002]
[1762809771493,9.52713001,3547.7,3547.6,0.002]
[1762809771693,10.52835496,3547.7,3547.6,0.002]
[1762809772206,10.93385896,3547.7,3547.6,0.002]
[1762809772413,9.93263401,3547.7,3547.6,0.002]
[1762809773012,6.30898732,3547.7,3547.6,0.002]
[1762809773311,5.99644985,3547.7,3547.6,0.002]
[1762809773806,6.34923732,3547.7,3547.6,0.002]
[1762809774383,6.74145731,3547.7,3547.6,0.002]
[1762809774592,6.34923732,3547.7,3547.6,0.002]
[1762809775381,7.09419206,3547.7,3547.6,0.002]
[1762809775790,6.35023732,3547.7,3547.6,0.002]
[1762809776187,5.99744985,3547.7,3547.6,0.002]
[1762809776414,6.74226966,3547.7,3547.6,0.002]
[1762809777280,7.18443556,3547.7,3547.6,0.002]
[1762809777713,6.43961575,3547.7,3547.6,0.002]
[1762809782223,6.03411175,3547.7,3547.6,0.002]
[1762809782411,5.59194585,3547.7,3547.6,0.002]
[1762809783623,5.99744985,3547.7,3547.6,0.002]
[1762809784384,5.59194585,3547.7,3547.6,0.002]
[1762809784577,4.67564585,3547.7,3547.6,0.2589]
[1762809784783,4.07943962,3547.7,3547.6,0.2589]
[1762809785099,2.81972762,3547.7,3547.6,0.2589]
[1762809785281,0.001,3547.7,3547.6,0.5158]
[1762809785679,0.001,3547.7,3547.6,0.84947938]
[1762809785923,0.001,3547.7,3547.6,3.66828646]
[1762809790734,0.001,3547.7,3547.6,0.84947938]
[1762809791043,2.81972762,3547.7,3547.6,0.002]
[1762809791223,0.001,3547.7,3547.6,0.2589]
[1762809791801,2.81972762,3547.7,3547.6,0.2589]
[1762809792033,0.001,3547.7,3547.6,0.2589]
[1762809792401,2.81972762,3547.7,3547.6,0.002]
[1762809792603,3.79032762,3547.7,3547.6,0.002]
[1762809792922,3.31182762,3547.7,3547.6,0.002]
[1762809793236,0.001,3547.7,3547.6,0.2589]
[1762809793448,2.81972762,3547.7,3547.6,0.2589]
[1762809793614,0.001,3547.7,3547.6,0.2589]
[1762809794738,2.81972762,3547.7,3547.6,0.002]
[1762809795117,0.001,3547.7,3547.6,0.2589]
[1762809795632,2.81972762,3547.7,3547.6,0.2589]
[1762809795840,0.001,3547.7,3547.6,0.2589]
[1762809796052,2.81972762,3547.7,3547.6,0.2589]
[1762809796352,0.001,3547.7,3547.6,0.5158]
[1762809797683,0.001,3548.1,3547.7,2.81872762]
[1762809797970,0.001,3548.1,3548.0,3.07538928]
[1762809798342,0.001,3548.1,3548.0,3.33228928]
[1762809799951,0.001,3548.1,3548.0,0.5138]
[1762809800131,0.001,3548.1,3548.0,3.33228928]
[1762809800327,0.001,3548.1,3548.0,1.12888681]
[1762809800533,0.001,3548.1,3548.0,3.33228928]
[1762809803280,0.001,3548.1,3548.0,3.07538928]
[1762809803484,0.001,3548.1,3548.0,3.33228928]
[1762809805562,0.001,3548.1,3548.0,3.36047417]
[1762809806076,0.001,3548.1,3548.0,3.33228928]
[1762809806261,0.001,3548.1,3548.0,4.07334719]
[1762809806484,0.001,3548.1,3548.0,5.73856319]
[1762809806658,0.001,3548.3,3548.2,2.81833042]
[1762809806839,0.001,3548.3,3548.2,3.10341372]
[1762809807039,0.001,3548.3,3548.2,4.59184242]
[1762809807254,0.001,3548.3,3548.2,5.41770138]
[1762809809142,0.001,3548.3,3548.2,19.91770138]
[1762809810854,0.001,3548.3,3548.2,5.41770138]
[1762809811095,0.001,3548.3,3548.2,5.85138868]
[1762809811293,0.001,3548.3,3548.2,5.82320538]
[1762809812367,0.001,3548.3,3548.2,20.32320538]
[1762809813785,0.001,3548.3,3548.2,15.58275896]
[1762809814099,0.001,3548.3,3548.2,3.07523042]
[1762809816074,0.001,3548.3,3548.2,3.33213042]
[1762809816275,0.001,3548.3,3548.2,7.61924446]
[1762809817217,0.001,3548.3,3548.2,8.87895646]
[1762809818754,0.001,3548.3,3548.1,3.86]
[1762809818755,0.4655,3548.3,3548.1,3.86]
[1762809819043,0.001,3548.3,3548.1,2.81840985]
[1762809819212,0.001,3548.3,3547.6,0.33567149]
[1762809819527,0.001,3548.3,3548.0,2.81846446]
[1762809819825,0.001,3548.3,3548.2,2.81833042]
[1762809820025,0.001,3548.3,3548.1,2.81836297]
[1762809820582,0.001,3548.3,3548.2,2.81833042]
[1762809821233,0.001,3548.3,3548.2,3.07523042]
[1762809821518,0.001,3548.3,3548.2,3.67532159]
[1762809824887,0.001,3548.3,3548.2,3.93222159]
[1762809825303,0.001,3548.3,3548.2,9.45743759]
[1762809828906,0.001,3548.3,3548.2,9.20053759]
[1762809829140,0.001,3548.3,3548.2,9.45743759]
[1762809831749,0.001,3548.3,3548.2,9.20053759]
[1762809833153,0.001,3548.3,3548.2,7.27842159]
[1762809833343,0.4655,3548.3,3548.2,7.27842159]
[1762809833846,0.4655,3548.3,3548.2,6.67833042]
[1762809834261,0.4655,3548.3,3548.2,3.86]
[1762809834630,0.4655,3548.3,3548.2,6.67833042]
[1762809835227,0.001,3548.3,3548.2,6.67833042]
[1762809835945,0.001,3548.3,3548.2,6.93523042]
[1762809836262,0.001,3548.3,3548.2,7.92151638]
[1762809836660,0.001,3548.3,3548.2,8.17841638]
[1762809836867,0.001,3548.3,3548.2,7.92151638]
[1762809839388,0.001,3548.3,3548.2,12.87103442]
[1762809839885,0.001,3548.3,3548.2,12.61413442]
[1762809840070,0.001,3548.3,3548.2,12.87103442]
[1762809840604,0.001,3548.3,3548.2,14.13074642]
[1762809843056,0.001,3548.5,3548.4,4.48338757]
[1762809843264,0.001,3548.7,3548.6,4.48322873]
[1762809843489,0.001,3548.7,3548.6,5.17792536]
[1762809843666,0.001,3548.7,3548.6,4.99702873]
[1762809843860,0.001,3548.7,3548.6,12.49702873]
[1762809844472,0.011,3549.9,3549.0,4.48291112]
[1762809844805,0.011,3549.9,3549.0,13.7429808]
[1762809845012,0.011,3549.9,3549.0,13.9998808]
[1762809845781,0.011,3549.9,3549.0,21.4998808]
[1762809846517,0.001,3549.5,3549.0,21.4998808]
[1762809846688,0.001,3549.5,3549.0,13.9998808]
[1762809847107,0.001,3549.5,3549.0,13.7429808]
[1762809847287,0.001,3549.5,3549.0,9.45586676]
[1762809847476,0.4736,3549.1,3549.0,5.119712]
[1762809847678,0.9238,3549.1,3549.0,6.67769512]
[1762809847988,0.9238,3549.1,3549.0,3.86]
[1762809848390,0.9238,3549.1,3549.0,6.67769512]
[1762809848585,0.9238,3549.1,3549.0,2.81769512]
[1762809848586,0.4736,3549.1,3549.0,2.81769512]
[1762809849809,0.9238,3549.1,3549.0,2.81769512]
[1762809850685,0.9238,3549.1,3548.9,2.81772977]
[1762809850900,0.4502,3549.0,3548.9,2.81772977]
[1762809851083,0.9228,3549.0,3548.9,2.81772977]
[1762809851284,0.4726,3549.0,3548.9,3.1047233]
[1762809852794,0.001,3549.1,3549.0,2.81769512]
[1762809853519,0.4736,3549.1,3549.0,2.81769512]
[1762809854299,0.9238,3549.1,3549.0,2.81769512]
[1762809855327,0.9238,3549.1,3548.7,3.86]
[1762809855529,0.6361,3548.8,3548.7,3.86]
[1762809855731,0.6361,3548.8,3548.7,6.67793332]
[1762809855931,0.001,3549.1,3548.7,7.62753676]
[1762809856135,0.4512,3549.1,3548.8,2.81784059]
[1762809856436,0.4512,3549.1,3548.9,2.81770293]
[1762809856630,0.4512,3549.1,3549.0,2.81769512]
[1762809856997,0.9238,3549.1,3549.0,3.61760486]
[1762809857737,0.9238,3549.1,3548.7,7.47760486]
[1762809857920,0.6361,3548.8,3548.7,10.29547085]
[1762809858102,1.0863,3548.8,3548.7,10.29547085]
[1762809858836,0.6361,3548.8,3548.7,11.60682045]
[1762809859022,0.4726,3548.8,3548.7,11.60682045]
[1762809861354,0.9228,3548.8,3548.7,11.60688778]
[1762809863134,0.4726,3548.8,3548.7,11.60688778]
[1762809863647,0.001,3549.1,3548.8,2.81785392]
[1762809863875,0.001,3549.1,3549.0,10.30980484]
[1762809864030,0.001,3549.1,3549.0,6.43529998]
[1762809864232,0.4736,3549.1,3549.0,6.43529998]
[1762809864815,0.001,3549.1,3549.0,6.69219998]
[1762809865064,0.001,3549.1,3549.0,10.30980484]
[1762809865264,0.001,3549.1,3549.0,12.1272078]
[1762809865920,0.001,3549.1,3549.0,12.3841078]
[1762809866750,0.001,3549.1,3549.0,12.7896118]
[1762809866958,0.001,3549.1,3549.0,17.9093238]
[1762809869352,0.001,3549.1,3549.0,17.6524238]
[1762809869656,0.001,3549.1,3549.0,17.9093238]
[1762809870486,0.001,3549.1,3549.0,17.6524238]
[1762809871466,0.001,3549.1,3549.0,13.77791894]
[1762809872126,0.001,3549.1,3549.0,17.6524238]
[1762809873956,0.001,3549.1,3549.0,14.03481894]
[1762809874466,0.001,3549.1,3549.0,17.6524238]
[1762809874933,0.001,3549.1,3549.0,14.03481894]
[1762809875770,0.001,3549.1,3549.0,17.6524238]
[1762809879950,0.001,3549.1,3549.0,17.3955238]
[1762809880149,0.4751,3549.1,3549.0,17.3955238]
[1762809880462,0.4751,3549.1,3549.0,13.77791894]
[1762809882075,0.4751,3549.1,3549.0,13.37241494]
[1762809882373,0.9565,3549.1,3549.0,11.55501198]
[1762809882970,0.4751,3549.1,3549.0,11.55501198]
[1762809883778,0.4751,3549.1,3549.0,15.83502084]
[1762809883779,0.001,3549.1,3549.0,15.83502084]
[1762809886300,0.4751,3549.1,3549.0,11.96051598]
[1762809886457,0.4751,3549.1,3549.0,13.64166394]
[1762809886844,0.9565,3549.1,3549.0,13.23615994]
[1762809887257,0.9565,3549.1,3549.0,3.86]
[1762809887479,0.9565,3549.1,3549.0,2.81769512]
[1762809887885,0.9565,3549.1,3548.9,2.81775656]
[1762809888082,0.5956,3548.8,3548.7,3.61760486]
[1762809888286,0.5956,3548.8,3548.6,2.81996874]
[1762809888484,0.5956,3548.8,3548.6,0.002]
[1762809888485,0.9555,3548.7,3548.6,0.002]
[1762809889989,3.77343332,3548.7,3548.6,0.002]
[1762809890352,0.9555,3548.7,3548.6,0.002]
[1762809890557,3.77343332,3548.7,3548.6,0.002]
[1762809890975,0.9555,3548.7,3548.6,0.002]
[1762809891793,3.77343332,3548.7,3548.6,0.002]
[1762809894182,0.9555,3548.7,3548.6,0.002]
[1762809894397,3.77343332,3548.7,3548.6,0.002]
[1762809895567,0.9555,3548.7,3548.6,0.002]
[1762809895985,3.77343332,3548.7,3548.6,0.002]
[1762809897804,3.77443332,3548.7,3548.6,0.002]
[1762809899413,0.9565,3548.7,3548.6,0.002]
[1762809899611,3.77443332,3548.7,3548.6,0.002]
[1762809900714,0.9565,3548.7,3548.6,0.002]
[1762809900879,3.77443332,3548.7,3548.6,0.002]
[1762809903522,5.03414532,3548.7,3548.6,0.002]
[1762809903712,4.07796299,3548.3,3548.2,0.002]
[1762809903909,2.81864817,3547.8,3547.6,0.002]
[1762809904110,2.81864817,3547.8,3546.4,0.11297185]
[1762809904111,3.272466,3547.4,3545.6,7.5]
[1762809904328,3.27341991,3546.2,3545.6,7.5]
[1762809904529,0.4535,3546.2,3545.6,7.5]
[1762809904739,3.76631991,3546.2,3545.1,0.01]
[1762809904947,4.1016107,3546.2,3545.1,0.01]
[1762809905138,5.3613227,3546.2,3545.1,0.01]
[1762809905453,2.206112,3546.2,3545.4,3.61760486]
[1762809905754,5.02603191,3546.2,3545.4,3.61760486]
[1762809905935,5.02603191,3546.2,3545.4,6.43809467]
[1762809906112,2.206112,3546.2,3545.4,3.61760486]
[1762809906317,5.02603191,3546.2,3545.4,3.61760486]
[1762809906516,0.9464,3546.2,3545.5,2.8204117]
[1762809906736,3.76631991,3546.2,3545.5,2.8204117]
[1762809906921,3.76631991,3546.2,3545.4,2.82052986]
[1762809907135,3.76631991,3546.2,3545.1,0.1292]
[1762809907136,0.9464,3546.2,3545.5,0.02820476]
[1762809907441,0.9464,3546.2,3545.4,2.82052553]
[1762809907637,0.9464,3546.2,3545.7,2.82029766]
[1762809907810,0.9464,3546.2,3545.2,0.2809]
[1762809908053,0.9464,3546.2,3545.7,2.82024101]
[1762809908223,0.9464,3546.2,3545.8,2.82023272]
[1762809908436,0.9464,3546.2,3545.4,2.82054351]
[1762809908613,0.9464,3546.2,3545.7,2.82030312]
[1762809909142,0.9464,3546.2,3545.8,2.82022972]
[1762809909529,0.9464,3546.2,3545.7,2.82028826]
[1762809910201,0.9464,3546.2,3545.5,2.82041824]
[1762809910434,0.9464,3546.2,3545.8,2.82021896]
[1762809910738,0.9464,3546.2,3545.7,2.82029908]
[1762809911541,0.9464,3546.2,3545.7,2.82029088]
[1762809911833,0.4535,3546.2,3545.7,2.82031728]
[1762809912039,0.4535,3546.2,3545.4,0.2809]
[1762809912259,0.4535,3546.2,3546.0,2.82002864]
[1762809912406,0.6762,3546.5,3546.0,2.82002864]
[1762809912756,0.4535,3546.2,3545.9,2.82010749]
[1762809912956,0.4535,3546.2,3545.4,3.10142094]
[1762809912957,0.4535,3546.2,3545.8,0.02820238]
[1762809913257,0.4535,3546.2,3545.1,2.9499476]
[1762809913258,0.4535,3546.2,3545.2,1.540612]
[1762809913557,0.9464,3546.2,3545.6,2.82035001]
[1762809913702,0.9464,3546.2,3545.1,0.1292]
[1762809913703,0.9464,3546.2,3545.2,0.2809]
[1762809914060,0.9464,3546.2,3545.7,2.82030856]
[1762809914205,0.9464,3546.2,3545.1,0.1292]
[1762809914407,3.76631991,3546.2,3545.2,1.259712]
[1762809914612,0.9464,3546.2,3545.6,2.82035078]
[1762809915351,3.76631991,3546.2,3545.2,0.1192]
[1762809915652,0.1833,3546.5,3546.1,0.00200001]
[1762809915955,0.1833,3546.5,3546.1,2.82199678]
[1762809916152,0.1833,3546.5,3546.1,0.00200001]
[1762809916357,0.1833,3546.7,3546.1,2.93917766]
[1762809916524,0.4939,3547.1,3546.5,2.81968137]
[1762809916859,0.001,3547.1,3546.8,2.81942757]
[1762809917008,0.001,3547.1,3546.9,2.81935741]
[1762809917557,0.4535,3547.0,3546.3,0.405504]
[1762809917712,0.001,3547.1,3546.8,2.81938789]
[1762809917908,0.001,3547.1,3546.9,2.81934956]
[1762809919148,0.001,3547.1,3547.0,2.8192839]
[1762809919372,0.001,3547.1,3547.0,3.1001839]
[1762809920087,0.001,3547.1,3546.5,0.2809]
[1762809920384,0.001,3547.1,3546.6,4.36460702]
[1762809920592,0.001,3547.1,3546.4,14.5]
[1762809920878,0.001,3547.1,3546.8,2.81944132]
[1762809921381,0.4939,3547.1,3546.3,1.259712]
[1762809921837,0.4939,3547.1,3546.8,2.81937326]
[1762809922038,0.4939,3547.1,3546.2,0.686404]
[1762809922241,0.4939,3547.1,3546.9,2.81929409]
[1762809922435,0.4939,3547.1,3546.3,14.5]
[1762809922680,0.4939,3547.1,3546.8,2.81943989]
[1762809922979,0.4939,3547.1,3546.1,0.69794616]
[1762809923340,0.4939,3547.1,3546.3,4.07955239]
[1762809923536,0.4939,3547.1,3546.6,2.81957564]
[1762809924077,0.4535,3546.7,3546.1,0.11920001]
[1762809924238,0.4939,3547.1,3546.1,0.11920001]
[1762809924447,3.3122117,3547.0,3546.1,0.11920001]
[1762809924651,3.3122117,3547.0,3546.3,2.81977427]
[1762809924964,0.4929,3546.9,3546.4,2.81975054]
[1762809925164,0.001,3547.1,3546.1,0.11920001]
[1762809925384,0.001,3547.1,3546.8,2.81939366]
[1762809926206,0.001,3547.1,3547.0,0.2809]
[1762809926354,0.001,3547.1,3547.0,3.1001839]
[1762809926780,0.001,3547.1,3547.0,2.8192839]
[1762809928220,0.001,3547.1,3547.0,3.1001839]
[1762809928391,0.001,3547.1,3547.0,3.75124774]
[1762809928710,0.001,3547.1,3547.0,3.72305491]
[1762809929483,0.001,3547.1,3547.0,0.90377101]
[1762809929685,0.4845,3547.1,3546.6,2.81954034]
[1762809929911,0.4845,3547.1,3546.8,2.81941128]
[1762809930274,0.4845,3547.1,3546.5,3.86]
[1762809930473,0.4845,3547.1,3546.8,2.81938327]
[1762809931672,0.4845,3547.1,3546.8,2.81944287]
[1762809931878,0.4845,3547.1,3546.7,6.67952174]
[1762809932212,0.001,3547.1,3546.9,2.81932968]
[1762809933487,0.001,3547.1,3546.8,2.82140938]
[1762809934422,0.001,3547.1,3546.8,0.002]
[1762809934635,0.001,3547.1,3546.8,2.82143547]
[1762809936332,0.001,3547.1,3546.8,2.82142592]
[1762809937025,0.001,3547.1,3547.0,2.8192839]
[1762809938228,0.001,3547.1,3547.0,3.1001839]
[1762809941098,0.001,3547.1,3547.0,2.8192839]
[1762809942905,0.4646,3547.1,3546.9,2.81932794]
[1762809943108,0.4646,3547.1,3547.0,2.8192839]
[1762809943706,0.001,3547.1,3547.0,2.8192839]
[1762809944704,0.4646,3547.1,3546.9,2.81933057]
[1762809945143,0.4646,3547.1,3546.9,2.81936338]
[1762809945341,0.4646,3547.1,3546.8,0.002]
[1762809945679,0.4636,3546.9,3546.8,0.002]
[1762809946009,0.9266,3546.9,3546.8,0.002]
[1762809946406,3.74596338,3546.9,3546.8,0.002]
[1762809946640,0.9266,3546.9,3546.8,0.002]
[1762809947005,3.74596338,3546.9,3546.8,0.002]
[1762809950540,5.00567538,3546.9,3546.8,0.002]
[1762809950860,5.9414249,3546.9,3546.8,0.002]
[1762809951429,2.81968137,3546.5,3546.4,0.002]
[1762809951658,3.28328137,3546.5,3546.4,0.002]
[1762809951873,4.0847963,3546.5,3546.4,0.002]
[1762809952033,5.3445083,3546.5,3546.4,0.002]
[1762809953845,5.00599337,3546.5,3546.4,0.002]
[1762809954751,4.07963191,3546.2,3546.1,0.00200001]
[1762809954944,4.54323191,3546.2,3546.1,0.00200001]
[1762809955144,5.02203191,3546.2,3546.1,0.00200001]
[1762809958769,5.04303191,3546.2,3546.1,0.00200001]
[1762809973680,2.82014999,3546.0,3545.7,0.002]
[1762809973880,7.70619751,3545.2,3545.1,0.01]
[1762809974218,8.54636244,3545.2,3545.1,0.01]
[1762809974379,9.64011638,3545.2,3545.1,0.01]
[1762809975196,9.64011638,3545.2,3545.1,1e-08]
[1762809975197,10.04562038,3545.2,3545.1,1e-08]
[1762809976017,5.04462733,3545.2,3545.1,1e-08]
[1762809976420,5.42039226,3545.2,3545.1,1e-08]
[1762809976726,6.01435572,3545.2,3545.1,1e-08]
[1762809977402,5.63859079,3545.2,3545.1,1e-08]
[1762809977921,9.6401259,3545.2,3545.1,1e-08]
[1762809980349,6.01435572,3545.2,3545.1,1e-08]
[1762809980549,9.6401259,3545.2,3545.1,1e-08]
[1762809980862,4.67439079,3545.2,3545.1,0.28290001]
[1762809981161,2.82071533,3545.2,3545.1,1e-08]
[1762809981565,3.78491533,3545.2,3545.1,1e-08]
[1762809981750,4.13176341,3545.2,3545.1,1e-08]
[1762809982666,3.63196341,3545.2,3545.1,1e-08]
[1762809982865,3.28511533,3545.2,3545.1,1e-08]
[1762809983767,3.78491533,3545.2,3545.1,1e-08]
[1762809985629,3.78491533,3545.2,3545.1,0.00200001]
[1762809985968,3.78591533,3545.2,3545.1,0.00200001]
[1762809986268,2.82171533,3545.2,3545.1,0.00200001]
[1762809986447,3.27371533,3545.2,3545.1,0.00200001]
[1762809986646,9.06070151,3545.2,3545.1,0.00200001]
[1762809986851,3.22653762,3544.8,3544.7,0.002]
[1762809987046,9.34303713,3544.8,3544.7,0.002]
[1762809987371,9.83903713,3544.8,3544.7,0.002]
[1762809988935,6.21326695,3544.8,3544.7,0.002]
[1762809990576,5.80776295,3544.8,3544.7,0.002]
[1762809993479,6.16735634,3544.8,3544.7,0.002]
[1762809994816,6.57286034,3544.8,3544.7,0.002]
[1762809995003,6.21326695,3544.8,3544.7,0.002]
[1762809995569,6.57286034,3544.8,3544.7,0.002]
[1762809996508,6.21326695,3544.8,3544.7,0.002]
[1762809996803,6.57286034,3544.8,3544.7,0.002]
[1762809996968,6.21326695,3544.8,3544.7,0.002]
[1762809999702,6.65588103,3544.8,3544.7,0.002]
[1762810001195,5.75437703,3544.8,3544.7,0.002]
[1762810002207,5.11767703,3544.8,3544.7,0.002]
[1762810003413,5.56967703,3544.8,3544.7,0.002]
[1762810003809,6.06567703,3544.8,3544.7,0.002]
[1762810005382,5.11767703,3544.8,3544.7,0.002]
[1762810005590,5.56967703,3544.8,3544.7,0.002]
[1762810007913,5.11767703,3544.8,3544.7,0.002]
[1762810009114,5.11767703,3544.8,3544.7,0.2869]
[1762810009692,4.5233597,3544.8,3544.7,0.2869]
[1762810010104,4.08074562,3544.8,3544.7,0.2869]
[1762810010308,5.62446366,3544.8,3544.7,0.002]
[1762810010492,9.61269137,3544.8,3544.7,0.002]
[1762810010796,2.8215112,3544.2,3544.1,0.01]
[1762810011407,2.8215112,3544.2,3544.1,0.6284]
[1762810012187,1.259712,3544.7,3544.1,0.6284]